bitfinex/quotes_ETHUSD_20240530
["timestamp","ask_amount","ask_price","bid_price","bid_amount"]
[1717052881610,0.5779339,3745.1,3744.0,1.60254]
[1717052882000,2.1800339,3745.1,3743.6,0.160277]
[1717052882323,1.87582612,3745.1,3743.4,3.55579]
[1717052882525,1.87582612,3745.1,3742.9,2.7534]
[1717052882526,1.60231,3744.6,3742.9,2.7534]
[1717052882731,6.33228706,3744.5,3743.0,2.90087222]
[1717052883039,0.5779339,3744.4,3743.1,0.56542722]
[1717052883710,0.5779339,3744.4,3743.3,1.60284]
[1717052883916,0.5779339,3744.4,3743.4,1.29789222]
[1717052884551,0.5779339,3744.4,3743.3,1.60284]
[1717052885097,0.57793322,3744.4,3743.3,1.60284]
[1717052885314,6.33228706,3744.5,3743.5,1.60277]
[1717052887568,1.60164,3746.2,3744.6,2.7958]
[1717052887854,0.57782759,3747.3,3745.7,1.60179]
[1717052888020,0.57782759,3747.3,3746.0,1.60167]
[1717052888021,2.57997994,3747.2,3746.0,1.60167]
[1717052888206,1.94083644,3747.1,3746.0,1.60167]
[1717052888649,1.94083644,3747.0,3746.0,1.60167]
[1717052889004,1.94083644,3746.9,3746.0,1.60167]
[1717052889298,1.94083644,3746.8,3746.0,1.60167]
[1717052889499,0.57782759,3747.4,3746.0,1.60167]
[1717052889500,1.94083644,3746.7,3746.0,1.60167]
[1717052889667,0.50803576,3747.3,3746.0,1.60167]
[1717052889868,1.94063083,3747.2,3746.0,1.60167]
[1717052890861,0.55,3747.1,3746.0,1.60167]
[1717052891056,2.24049749,3747.0,3746.0,1.60167]
[1717052891395,2.49063083,3746.9,3746.0,1.60167]
[1717052891612,1.94063083,3746.8,3746.0,1.60167]
[1717052891758,0.55,3746.7,3746.0,1.60167]
[1717052892367,0.55,3746.9,3746.0,1.60167]
[1717052892667,1.94064591,3746.8,3746.0,1.60167]
[1717052893001,0.82905126,3746.7,3746.0,1.60167]
[1717052893598,0.55,3746.7,3745.4,1.60194]
[1717052893785,4.1275777,3747.0,3745.5,1.29789222]
[1717052893982,1.94065272,3746.9,3745.5,1.29789222]
[1717052894175,0.55,3746.8,3745.5,1.29789222]
[1717052894376,0.66182304,3746.7,3745.5,1.58787544]
[1717052894566,0.66182304,3746.7,3744.6,2.7958]
[1717052894567,2.8389,3746.5,3744.8,1.6022]
[1717052894771,1.60162,3746.2,3744.8,1.6022]
[1717052895003,10.14864682,3746.4,3745.1,2.849]
[1717052895004,0.57758948,3746.3,3745.1,2.849]
[1717052895171,0.55,3746.6,3745.4,1.60194]
[1717052895383,1.12760097,3746.6,3745.6,1.60187]
[1717052895580,0.55,3746.6,3745.6,2.89976222]
[1717052895767,0.55,3746.7,3745.6,2.89976222]
[1717052895970,0.55,3746.7,3745.6,1.60187]
[1717052896166,1.94058369,3746.6,3745.0,1.60213]
[1717052896415,0.55,3746.5,3745.0,1.60213]
[1717052896714,1.94082738,3746.4,3745.0,1.60213]
[1717052896913,1.31699129,3746.3,3745.0,1.60213]
[1717052897077,4.31699129,3746.3,3745.0,1.60213]
[1717052897272,1.31699129,3746.3,3745.0,1.60213]
[1717052897667,1.31699129,3746.3,3745.3,1.602]
[1717052897908,1.31699129,3746.3,3745.3,2.89989222]
[1717052899371,0.43169913,3746.2,3745.3,2.89989222]
[1717052899571,0.55,3746.1,3745.3,2.89989222]
[1717052899770,1.60106,3747.5,3745.6,1.60186]
[1717052899972,2.51840764,3746.8,3745.8,1.60177]
[1717052900190,1.60106,3747.5,3745.8,1.60177]
[1717052900384,2.57390584,3746.8,3745.8,1.60177]
[1717052900620,0.63322871,3746.8,3745.9,1.29789222]
[1717052900917,2.7127,3747.8,3746.0,1.60166]
[1717052901120,2.7127,3747.8,3746.3,1.60156]
[1717052901318,6.33228706,3747.4,3746.4,1.29789222]
[1717052901620,6.33228706,3747.4,3746.3,1.60156]
[1717052901919,0.63322871,3747.4,3746.5,1.60148]
[1717052902125,0.63322871,3747.4,3746.5,2.89937222]
[1717052902522,6.33228706,3747.7,3746.7,1.6014]
[1717052902721,6.33228706,3747.7,3746.8,1.29789222]
[1717052903028,6.33228706,3747.7,3746.7,1.6014]
[1717052903925,0.55,3747.6,3746.7,1.6014]
[1717052905224,2.15103,3747.6,3746.1,1.60164]
[1717052905434,5.15103,3747.6,3746.1,2.89953222]
[1717052905989,1.60114,3747.4,3746.1,1.60164]
[1717052906186,1.84789222,3747.3,3745.5,1.6019]
[1717052906432,6.33228706,3747.2,3745.6,1.29789222]
[1717052906614,4.42576992,3747.1,3745.6,1.29789222]
[1717052907015,6.02702992,3747.1,3745.7,1.6018]
[1717052907240,6.02702992,3747.1,3745.9,1.60171]
[1717052908041,1.60137,3746.8,3745.3,1.60197]
[1717052908223,1.60151,3746.5,3745.3,1.60197]
[1717052908409,0.8999073,3746.4,3745.3,1.60197]
[1717052908609,0.57758352,3746.5,3745.5,2.8276]
[1717052908810,0.57758352,3746.5,3745.6,1.29789222]
[1717052909123,6.33228706,3746.6,3745.6,1.29789222]
[1717052909442,6.33228706,3746.6,3746.0,1.6017]
[1717052909826,6.33228706,3746.6,3745.6,1.29789222]
[1717052910026,6.96551577,3746.6,3745.4,1.60192]
[1717052910238,6.96551577,3746.6,3745.4,2.89981222]
[1717052910618,0.55,3746.5,3745.4,2.89981222]
[1717052911324,3.2188,3746.5,3745.4,1.60192]
[1717052911530,3.59244851,3746.4,3744.8,1.60218]
[1717052911732,1.12769149,3746.3,3744.9,1.29789222]
[1717052912256,1.12769149,3746.3,3744.2,1.60243]
[1717052912257,1.29789222,3746.2,3744.2,1.60243]
[1717052912422,1.6018,3745.8,3744.3,1.29789222]
[1717052912754,0.16018,3745.7,3744.4,0.29003222]
[1717052912952,0.16018,3745.7,3744.2,1.60243]
[1717052912953,5.04661,3745.6,3744.2,1.60243]
[1717052913152,3.0,3745.5,3744.2,1.60243]
[1717052913454,0.55,3745.4,3744.2,1.60243]
[1717052913830,1.12776508,3745.4,3744.2,1.60243]
[1717052914028,0.47304871,3745.3,3744.2,1.60243]
[1717052914236,0.55,3745.2,3744.2,1.60243]
[1717052914443,1.12776508,3745.4,3744.2,1.60243]
[1717052915526,1.60201,3745.3,3743.6,1.60271]
[1717052915714,1.60201,3745.3,3743.7,1.29789222]
[1717052915910,1.60213,3745.0,3743.6,1.60271]
[1717052916225,1.60237,3744.5,3743.1,0.56542722]
[1717052916412,0.55,3744.4,3743.0,1.60296]
[1717052916612,1.12776508,3744.4,3743.0,2.90085222]
[1717052916868,4.12776508,3744.4,3743.0,2.90085222]
[1717052917048,0.57776508,3744.3,3743.2,1.6029]
[1717052917258,3.55,3744.4,3743.2,1.6029]
[1717052917259,0.55,3744.2,3743.3,1.29789222]
[1717052917437,3.55,3744.4,3743.4,0.29007922]
[1717052917615,3.55,3744.4,3743.3,1.29789222]
[1717052917835,0.57793272,3744.3,3743.2,1.6029]
[1717052918158,0.55,3744.2,3743.2,1.6029]
[1717052918875,0.55,3744.2,3742.6,1.60315]
[1717052919018,2.90043222,3744.1,3742.6,1.60315]
[1717052919357,2.8054,3743.7,3742.6,1.29789222]
[1717052919514,0.55,3743.6,3742.6,1.29789222]
[1717052919734,3.55,3743.6,3742.6,1.29789222]
[1717052920133,3.55,3743.6,3742.2,1.60329]
[1717052920388,3.55,3743.6,3742.3,1.29789222]
[1717052920585,3.55,3743.6,3742.4,0.57165822]
[1717052920786,3.55,3743.6,3742.4,1.86955044]
[1717052921075,0.55,3743.6,3742.6,1.60314]
[1717052921300,0.55,3743.8,3743.1,1.60293]
[1717052921589,0.55,3743.8,3743.1,1.763223]
[1717052922235,0.55,3743.8,3743.1,1.60293]
[1717052930185,1.817413,3744.9,3742.4,0.57165822]
[1717052930186,6.33228706,3745.1,3743.3,1.29789222]
[1717052930399,6.33228706,3745.1,3743.9,1.954]
[1717052930687,6.33228706,3745.1,3744.0,1.60253]
[1717052930842,0.92552871,3745.0,3744.0,1.60253]
[1717052931673,0.55,3744.9,3744.0,1.60253]
[1717052932793,3.92552871,3745.0,3744.0,2.90042222]
[1717052932794,3.0,3745.0,3744.0,2.90042222]
[1717052932962,6.33228706,3745.1,3744.3,1.6024]
[1717052933163,6.33228706,3745.5,3744.4,0.29002922]
[1717052933444,6.33228706,3745.5,3744.3,1.6024]
[1717052934291,3.0,3745.4,3744.7,1.60225]
[1717052934489,6.33228706,3745.5,3744.7,1.60225]
[1717052935293,6.33228706,3745.5,3743.3,3.0]
[1717052935294,6.33228706,3745.5,3745.0,1.60213]
[1717052935479,6.33228706,3745.5,3745.2,1.60204]
[1717052935680,2.94,3746.4,3745.2,1.60204]
[1717052935990,2.94,3746.4,3745.3,1.29789222]
[1717052936973,9.25058706,3747.1,3745.4,1.60195]
[1717052937190,0.57761566,3747.0,3745.5,1.86695644]
[1717052937694,0.57761566,3747.0,3745.4,1.60195]
[1717052937899,1.60134,3746.9,3745.4,2.89984222]
[1717052938300,2.89923222,3746.9,3745.4,1.60195]
[1717052938458,0.57761566,3746.8,3745.4,1.60195]
[1717052938655,3.57761566,3746.8,3745.4,1.60195]
[1717052938858,1.77530045,3746.7,3745.4,1.60195]
[1717052939061,2.6972,3746.4,3744.8,1.6022]
[1717052939313,4.12763839,3746.3,3744.8,1.6022]
[1717052939613,0.57763839,3746.2,3744.8,1.6022]
[1717052939825,0.55,3746.1,3744.2,1.60244]
[1717052939961,4.53475,3745.9,3744.2,1.60244]
[1717052940165,1.60186,3745.7,3744.2,1.60244]
[1717052940473,1.60186,3745.7,3743.7,2.7095]
[1717052940474,0.57771361,3745.7,3744.4,1.60235]
[1717052940785,0.55,3745.6,3744.7,1.60223]
[1717052941098,0.8983,3745.6,3744.7,1.60223]
[1717052941877,0.8983,3745.6,3744.1,1.60248]
[1717052942080,0.8983,3745.6,3744.1,2.90037222]
[1717052942401,1.47609216,3745.6,3744.1,2.90037222]
[1717052942560,1.60196,3745.5,3743.7,2.7095]
[1717052942763,2.9269,3745.0,3743.5,1.60276]
[1717052942999,0.55,3744.9,3743.5,1.60276]
[1717052943206,1.60225,3744.8,3743.5,1.60276]
[1717052943501,1.60231,3744.6,3743.5,1.60276]
[1717052943655,0.55,3744.5,3743.5,1.60276]
[1717052943861,0.3280152,3744.4,3743.5,2.90065222]
[1717052944062,0.55,3744.3,3743.5,2.90065222]
[1717052944258,6.33228706,3745.0,3743.7,2.7998]
[1717052944463,6.33228706,3745.0,3744.2,1.60245]
[1717052944873,6.33228706,3745.0,3743.7,2.7998]
[1717052945073,6.33228706,3745.0,3743.8,1.29789222]
[1717052945267,0.63322871,3744.9,3743.8,1.29789222]
[1717052945775,0.55,3744.8,3743.8,1.29789222]
[1717052945991,0.55,3744.8,3743.9,1.60259]
[1717052946191,0.55,3744.8,3743.9,2.90048222]
[1717052946400,0.55,3744.9,3743.9,2.90048222]
[1717052946600,0.55,3744.9,3744.1,1.60251]
[1717052946939,12.36,3746.1,3744.4,1.60238]
[1717052946940,6.33228706,3745.8,3744.4,1.60238]
[1717052947075,0.57773728,3745.7,3744.8,1.60219]
[1717052947277,6.33228706,3745.8,3744.9,1.29789222]
[1717052947597,6.33228706,3745.8,3744.9,1.58790044]
[1717052949802,0.55,3745.7,3744.9,1.58790044]
[1717052950715,6.33228706,3745.8,3745.1,1.60209]
[1717052950885,6.33228706,3745.8,3745.2,1.29789222]
[1717052951088,6.33228706,3746.3,3745.2,1.29789222]
[1717052951876,0.55,3746.2,3745.2,1.29789222]
[1717052952075,0.55,3746.2,3745.3,0.28999822]
[1717052953000,0.55,3746.2,3745.1,1.60209]
[1717052953201,4.12768837,3746.2,3745.1,1.60209]
[1717052953419,0.57768837,3746.1,3745.1,1.60209]
[1717052953715,0.55,3746.0,3745.1,1.60209]
[1717052953920,0.55,3746.0,3745.2,1.29789222]
[1717052954143,0.55,3746.1,3745.2,1.29789222]
[1717052954478,0.55,3746.1,3744.5,4.48001]
[1717052954680,0.55,3746.1,3744.6,1.29789222]
[1717052954681,1.12764025,3746.1,3744.6,1.29789222]
[1717052955773,0.55,3746.1,3744.6,1.29789222]
[1717052956009,0.55,3746.1,3744.7,1.60225]
[1717052956217,1.12765499,3746.1,3744.8,1.29789222]
[1717052956427,1.12765499,3746.1,3744.9,0.29001422]
[1717052956596,1.12765499,3746.1,3744.9,1.58790644]
[1717052961733,1.12765568,3746.1,3744.9,1.58790644]
[1717052961932,1.12765568,3746.1,3744.9,1.29789222]
[1717052963026,1.6017,3746.0,3744.7,1.60225]
[1717052963226,0.55,3745.9,3744.7,2.90014222]
[1717052963532,0.41849904,3745.7,3744.7,2.90014222]
[1717052963718,0.55,3745.6,3744.7,2.90014222]
[1717052964033,0.55,3745.6,3744.7,3.67332644]
[1717052964336,2.7696,3745.5,3744.1,1.60249]
[1717052964531,2.7696,3745.5,3744.2,1.29789222]
[1717052964532,1.12772084,3745.4,3744.2,1.29789222]
[1717052965631,4.12776204,3745.4,3744.3,1.35129874]
[1717052965838,0.57776204,3745.3,3744.3,1.29789222]
[1717052966142,0.55,3745.2,3744.3,1.29789222]
[1717052966306,0.55,3745.2,3744.3,1.61693526]
[1717052966639,0.55,3745.3,3744.3,1.61693526]
[1717052967200,0.55,3745.3,3744.4,3.55637]
[1717052967404,0.55,3745.3,3744.6,1.60228]
[1717052967649,0.55,3745.4,3744.6,2.90017222]
[1717052967822,0.55,3745.4,3744.7,0.48541722]
[1717052970749,0.55,3745.4,3744.6,2.90017222]
[1717052972015,0.55,3745.4,3744.0,1.89256822]
[1717052972240,2.9104,3745.3,3744.0,2.90041222]
[1717052972416,1.12774322,3745.2,3744.0,2.90041222]
[1717052973859,1.94133941,3745.1,3744.0,2.90041222]
[1717052974153,0.55,3745.0,3744.0,2.90041222]
[1717052975350,1.94138153,3744.9,3744.0,1.60252]
[1717052975506,0.55,3744.8,3744.0,1.60252]
[1717052975707,1.12774322,3744.8,3743.6,1.954]
[1717052975948,1.12774322,3744.8,3743.6,3.25189222]
[1717052976818,1.94149858,3744.7,3743.6,3.25189222]
[1717052977156,0.55,3744.6,3743.6,1.954]
[1717052977352,3.82940462,3744.5,3743.2,1.954]
[1717052977647,0.57774322,3744.4,3743.2,3.25189222]
[1717052977853,0.55,3744.3,3743.2,3.25189222]
[1717052978056,1.94162027,3744.2,3743.2,3.25189222]
[1717052978353,0.55,3744.1,3743.2,3.25189222]
[1717052978848,0.57774322,3744.4,3743.2,3.25189222]
[1717052978849,0.55,3744.3,3743.2,3.25189222]
[1717052979011,1.94177821,3744.2,3743.2,3.25189222]
[1717052979213,0.55,3744.1,3743.2,3.25189222]
[1717052979855,0.55,3744.2,3743.2,3.25189222]
[1717052980750,0.57774322,3744.4,3743.2,3.25189222]
[1717052980751,0.55,3744.3,3743.2,3.25189222]
[1717052981755,0.55,3744.3,3742.9,4.30042]
[1717052981945,0.90624003,3744.2,3743.0,1.29789222]
[1717052982142,0.55,3744.1,3743.0,1.29789222]
[1717052982893,1.12774322,3744.1,3743.0,1.29789222]
[1717052983391,0.55,3744.1,3743.0,1.29789222]
[1717052987499,2.15256,3744.1,3743.0,1.29789222]
[1717052987646,2.15256,3744.1,3743.0,1.58798344]
[1717052987840,2.73053708,3744.1,3743.0,1.58798344]
[1717052988040,2.15256,3744.1,3743.0,1.58798344]
[1717052988240,2.15256,3744.1,3743.0,3.54198344]
[1717052989998,2.15256,3744.1,3743.1,1.60294]
[1717052990158,0.55,3744.1,3743.2,0.51449234]
[1717052990501,0.55,3744.2,3743.2,0.51449234]
[1717052990797,1.12794047,3744.3,3743.2,0.51449234]
[1717052995111,0.57794047,3744.3,3743.5,1.60275]
[1717052995313,0.57794047,3744.3,3743.8,1.60264]
[1717052995608,6.33228706,3744.5,3744.0,1.60255]
[1717052995910,6.33228706,3744.5,3744.0,2.90044222]
[1717052996916,1.954,3746.3,3744.4,1.29789222]
[1717052997128,1.954,3746.3,3743.6,0.77245422]
[1717052997129,1.069756,3746.4,3745.5,3.55592]
[1717052997305,0.57776089,3746.8,3745.7,1.60182]
[1717052997471,0.57776089,3746.8,3745.8,1.29789222]
[1717052997671,0.57776089,3746.9,3745.8,1.29789222]
[1717052997900,0.57776089,3746.9,3746.0,1.6017]
[1717052998211,0.57776089,3746.9,3746.1,1.29789222]
[1717052998416,25.5,3747.0,3746.2,1.6016]
[1717052998707,25.5,3747.0,3746.3,1.29789222]
[1717053000666,25.5,3747.0,3746.4,5.64062222]
[1717053000870,25.5,3747.0,3746.6,1.60143]
[1717053001112,25.5,3747.0,3746.8,1.60136]
[1717053001321,25.5,3747.0,3746.9,1.29789222]
[1717053001670,25.5,3747.0,3746.8,1.60136]
[1717053001869,25.5,3747.0,3746.8,2.89925222]
[1717053002520,25.5,3747.0,3746.8,3.26512366]
[1717053003902,25.5,3747.0,3746.9,1.29789222]
[1717053007219,25.5,3747.0,3746.8,1.60136]
[1717053007522,25.5,3747.0,3746.8,2.89925222]
[1717053008334,25.5,3747.0,3746.2,1.60161]
[1717053008538,0.55,3746.9,3746.2,1.60161]
[1717053009430,0.55,3746.9,3745.6,1.60186]
[1717053009594,0.55,3746.9,3745.7,1.29789222]
[1717053010496,0.41838187,3746.7,3745.7,1.29789222]
[1717053010692,0.55,3746.6,3745.7,1.29789222]
[1717053010923,0.55,3746.6,3745.8,0.48537522]
[1717053011130,0.55,3746.6,3745.8,1.78326744]
[1717053011418,0.55,3746.6,3745.9,2.89963222]
[1717053011792,0.55,3746.9,3745.9,1.60174]
[1717053012617,0.55,3746.9,3746.1,1.60166]
[1717053012948,0.55,3746.9,3746.2,1.29789222]
[1717053013440,25.5,3747.0,3746.4,1.60153]
[1717053013730,25.5,3747.0,3746.3,1.954]
[1717053013731,25.5,3747.0,3746.6,1.60143]
[1717053014038,25.5,3747.0,3746.7,1.29789222]
[1717053014187,25.5,3747.0,3746.8,0.28993222]
[1717053014523,25.5,3747.0,3746.9,1.29789222]
[1717053016984,25.5,3747.0,3746.9,3.25189222]
[1717053022708,25.22581235,3747.0,3746.9,3.25189222]
[1717053022909,25.22581235,3747.0,3746.9,1.29789222]
[1717053023161,25.22581235,3747.0,3746.9,1.81221766]
[1717053025559,24.66894834,3747.0,3746.9,1.81221766]
[1717053027116,24.66894834,3747.0,3746.9,3.76621766]
[1717053029535,24.66894834,3747.0,3746.9,1.81221766]
[1717053029730,24.66894834,3747.0,3746.6,3.55543]
[1717053029934,24.66894834,3747.0,3746.6,4.85332222]
[1717053030560,0.55,3746.9,3746.6,3.55543]
[1717053030733,0.55,3746.9,3745.8,3.34657522]
[1717053030734,0.55,3746.9,3746.1,1.60166]
[1717053031364,1.12744475,3746.9,3746.1,2.89955222]
[1717053031860,0.55,3746.9,3746.1,2.89955222]
[1717053032647,0.55,3746.9,3746.2,1.29789222]
[1717053032852,27.36814834,3747.0,3746.7,1.6014]
[1717053032853,24.66894834,3747.0,3746.7,1.6014]
[1717053033048,24.66894834,3747.0,3746.9,1.60132]
[1717053033260,24.66894834,3747.0,3746.9,2.89921222]
[1717053034439,24.66894834,3747.0,3746.9,2.95447757]
[1717053039811,23.91998042,3747.0,3746.9,4.90847757]
[1717053040012,23.76653929,3747.0,3746.9,5.43487933]
[1717053043207,23.02553929,3747.0,3746.9,8.25007933]
[1717053043366,2.6483,3748.8,3748.2,1.60075]
[1717053043563,1.93946778,3748.7,3748.2,1.60075]
[1717053043817,2.6483,3748.8,3748.3,2.00810494]
[1717053044666,0.57721951,3749.2,3748.4,1.29789222]
[1717053044887,1.9392267,3749.1,3748.4,1.29789222]
[1717053045079,1.9392267,3749.1,3748.5,0.05404278]
[1717053045293,0.57721951,3749.3,3748.5,1.29789222]
[1717053045611,1.93919576,3749.2,3748.2,1.60075]
[1717053045983,1.93919576,3749.2,3748.3,1.29789222]
[1717053046182,0.57717068,3749.3,3748.3,1.35193155]
[1717053046389,0.55,3749.2,3748.3,1.40527958]
[1717053046589,0.55,3749.2,3748.3,1.90128254]
[1717053046791,0.55,3749.2,3748.3,1.84793451]
[1717053046972,0.57717068,3749.3,3748.4,1.65398833]
[1717053047166,0.5771067,3749.3,3748.6,1.60058]
[1717053047371,9.08978706,3749.4,3748.7,1.29789222]
[1717053047372,6.33228706,3749.4,3748.7,1.29789222]
[1717053047711,5.8223,3749.9,3748.7,1.29789222]
[1717053047875,2.51594511,3749.8,3748.7,1.29789222]
[1717053048071,0.57705153,3749.8,3748.7,1.29789222]
[1717053048270,0.57705153,3749.8,3748.9,1.29789222]
[1717053048466,0.1266575,3750.3,3748.9,1.29789222]
[1717053048915,0.1266575,3750.3,3749.0,0.05378733]
[1717053049097,0.1266575,3750.3,3749.1,1.29789222]
[1717053049719,0.1266575,3750.3,3749.2,0.05378733]
[1717053049915,0.1266575,3750.3,3749.3,1.60029]
[1717053050075,2.9328,3750.2,3749.2,0.05378733]
[1717053050413,2.9328,3750.2,3748.7,1.60051]
[1717053050414,0.85594575,3750.1,3748.7,1.60051]
[1717053050614,1.43296557,3750.1,3749.3,0.05292771]
[1717053050822,1.43296557,3750.1,3748.8,1.29789222]
[1717053050978,1.43296557,3750.1,3749.4,0.05292771]
[1717053051184,1.43296557,3750.1,3748.8,1.29789222]
[1717053051524,0.44924231,3750.0,3749.5,0.05292771]
[1717053051734,0.55,3749.9,3748.7,1.60051]
[1717053051885,2.7381,3749.8,3748.7,2.89840222]
[1717053052228,1.12709588,3749.7,3748.8,0.05292771]
[1717053053296,1.12709588,3749.7,3748.1,1.6008]
[1717053053497,0.38651959,3749.6,3748.2,1.29789222]
[1717053053723,0.55,3749.5,3748.2,1.35081993]
[1717053054726,2.15021,3749.5,3748.2,0.05292771]
[1717053054929,1.60034,3749.2,3748.2,0.05292771]
[1717053055085,0.999204,3749.1,3748.1,1.6008]
[1717053055284,0.999204,3749.1,3748.1,1.29789222]
[1717053055485,0.999204,3749.1,3748.2,0.05292771]
[1717053055912,1.60049,3748.9,3747.5,1.60102]
[1717053056225,2.8354,3748.7,3747.6,1.35081993]
[1717053056422,2.8354,3748.7,3747.6,0.05292771]
[1717053056423,0.87723091,3748.6,3747.6,0.05292771]
[1717053056592,1.60065,3748.5,3746.9,3.55529]
[1717053056800,0.55,3748.4,3747.7,0.05292771]
[1717053057089,0.55,3748.4,3747.0,1.29789222]
[1717053057430,0.55,3748.4,3747.1,0.05354209]
[1717053057651,0.24778809,3748.3,3747.2,1.29789222]
[1717053057971,0.55,3748.2,3747.3,1.60112]
[1717053058108,7.93268706,3749.1,3747.3,1.60112]
[1717053058109,7.93268706,3749.1,3747.8,1.60093]
[1717053058310,7.93268706,3749.1,3747.9,1.29789222]
[1717053059464,0.55,3749.0,3747.9,1.29789222]
[1717053060322,5.844,3749.2,3748.0,1.65482023]
[1717053060323,2.844,3749.2,3748.0,1.65482023]
[1717053060580,2.844,3749.2,3748.1,1.29789222]
[1717053061063,2.844,3749.2,3748.2,0.05371815]
[1717053061786,0.55,3749.1,3748.3,0.05371815]
[1717053061970,0.55,3749.1,3748.0,1.60085]
[1717053062140,0.55,3749.1,3748.4,0.05370089]
[1717053062331,0.3394,3749.0,3748.1,1.29789222]
[1717053062531,0.55,3748.9,3748.2,0.05370089]
[1717053062736,0.55,3748.9,3748.3,1.29789222]
[1717053063083,6.33228706,3749.6,3748.3,1.29789222]
[1717053063241,6.33228706,3749.6,3748.4,0.05372506]
[1717053063586,6.33228706,3749.6,3748.5,1.29789222]
[1717053064249,0.57712049,3749.5,3748.5,1.29789222]
[1717053064456,0.55,3749.4,3748.0,1.60085]
[1717053064644,0.55,3749.4,3748.1,1.29789222]
[1717053064982,0.55,3749.4,3748.1,1.35161037]
[1717053065134,1.12712049,3749.4,3748.1,1.35161037]
[1717053065338,1.60032,3749.3,3748.1,0.05371815]
[1717053065536,0.55,3749.2,3748.1,0.05371815]
[1717053065982,1.12712049,3749.2,3748.1,0.05371815]
[1717053066239,4.12712049,3749.2,3748.1,0.05371815]
[1717053066469,1.14986454,3749.1,3748.1,0.05371815]
[1717053066666,0.55,3749.0,3748.1,0.05371815]
[1717053072752,0.57719749,3749.1,3748.4,2.7687]
[1717053072952,1.60009,3749.8,3748.6,1.60059]
[1717053073263,0.57719749,3749.9,3748.8,1.6005]
[1717053073563,2.9513,3750.2,3748.9,1.29789222]
[1717053073564,0.57719749,3750.1,3748.9,1.29789222]
[1717053074054,0.57719749,3750.1,3749.0,1.6004]
[1717053074265,0.57719749,3750.1,3749.1,1.29789222]
[1717053074470,1.7265375,3750.3,3749.1,1.29789222]
[1717053074471,0.1266575,3750.3,3749.4,1.60022]
[1717053074768,0.1266575,3750.3,3749.5,1.73577777]
[1717053075053,0.1266575,3750.3,3749.5,1.78918864]
[1717053076331,0.1266575,3750.3,3749.6,1.60016]
[1717053076529,0.1266575,3750.3,3749.7,1.29789222]
[1717053076737,0.1266575,3750.3,3749.7,1.63682708]
[1717053076933,0.1266575,3750.3,3749.8,0.05341087]
[1717053077133,0.1266575,3750.3,3749.9,1.29789222]
[1717053077543,0.1266575,3750.3,3750.0,0.05341087]
[1717053078221,0.1266575,3750.3,3750.1,6.10244222]
[1717053078423,0.1266575,3750.3,3750.2,2.10887753]
[1717053078731,0.1266575,3750.3,3750.2,2.1618571]
[1717053080329,0.1266575,3750.3,3750.2,0.0520584]
[1717053080330,3.3466575,3750.3,3750.2,0.0520584]
[1717053080574,3.8966575,3750.3,3750.2,0.0520584]
[1717053080751,3.8966575,3750.3,3748.0,3.2863]
[1717053080752,1.59991,3750.2,3748.0,3.2863]
[1717053081061,0.57686015,3750.2,3749.4,1.954]
[1717053081256,0.1266575,3750.3,3749.4,1.954]
[1717053081257,0.1266575,3750.3,3749.6,1.60016]
[1717053081462,0.1266575,3750.3,3749.7,1.29789222]
[1717053081819,0.1266575,3750.3,3749.8,0.04140606]
[1717053082130,0.1266575,3750.3,3749.9,1.29789222]
[1717053082337,0.1266575,3750.3,3749.9,1.33929828]
[1717053084983,0.1266575,3750.3,3749.9,0.04140606]
[1717053085196,0.55,3750.2,3749.0,1.60039]
[1717053085490,0.55,3750.2,3750.0,0.04140606]
[1717053085687,0.55,3750.2,3749.0,1.60039]
[1717053086052,0.55,3750.2,3749.1,0.04140606]
[1717053087201,1.59995,3750.1,3749.2,1.29789222]
[1717053087361,0.55,3750.0,3749.2,1.29789222]
[1717053087761,0.55,3750.0,3749.3,0.04140606]
[1717053088406,0.214995,3749.9,3749.3,0.04140606]
[1717053088606,0.70367379,3750.3,3749.0,3.2202]
[1717053088763,0.70367379,3750.3,3749.2,1.60033]
[1717053088965,0.1266575,3750.3,3749.2,2.89822222]
[1717053089516,2.09690319,3750.3,3749.3,0.04195374]
[1717053089857,2.09690319,3750.3,3749.2,1.60033]
[1717053090061,2.09690319,3750.3,3749.4,0.04195374]
[1717053090361,0.49702319,3750.3,3749.4,1.29789222]
[1717053090562,0.1266575,3750.3,3749.4,1.29789222]
[1717053091404,0.1266575,3750.3,3748.0,10.38]
[1717053091405,1.60003,3750.0,3748.2,1.60072]
[1717053091711,1.60003,3750.0,3749.5,0.04250831]
[1717053091894,1.60003,3750.0,3748.3,1.29789222]
[1717053092065,2.1770381,3750.0,3748.5,1.60063]
[1717053092390,0.55,3749.9,3748.6,1.29789222]
[1717053092596,3.55,3749.9,3748.8,1.6005]
[1717053092795,3.55,3749.9,3748.9,1.29789222]
[1717053092995,0.55,3749.9,3748.9,1.29789222]
[1717053093174,0.55,3749.9,3748.9,1.63023975]
[1717053093373,3.55,3749.9,3748.9,1.63023975]
[1717053093908,0.55,3749.9,3748.9,1.63023975]
[1717053094413,3.55,3749.9,3748.9,1.63023975]
[1717053094815,0.55,3749.9,3748.9,0.04250831]
[1717053094975,0.55,3749.9,3748.9,1.34040053]
[1717053095490,3.55,3749.9,3748.9,1.34040053]
[1717053095808,0.55,3749.9,3749.0,1.29789222]
[1717053096009,1.12706121,3750.1,3749.0,1.29789222]
[1717053096209,0.57706121,3750.1,3749.2,1.60032]
[1717053096417,0.1266575,3750.3,3749.3,1.29789222]
[1717053097013,0.1266575,3750.3,3749.4,0.0425669]
[1717053097185,0.1266575,3750.3,3749.5,1.29789222]
[1717053097515,0.1266575,3750.3,3749.4,0.0425669]
[1717053097816,0.55,3750.2,3749.4,1.49158992]
[1717053098117,0.55,3750.2,3749.5,0.0425669]
[1717053098483,0.55,3750.2,3749.4,1.49158992]
[1717053099275,0.55,3750.2,3749.5,0.0425669]
[1717053100174,0.55,3750.2,3749.5,1.34045912]
[1717053100380,0.55,3750.2,3749.6,0.15341568]
[1717053100590,0.55,3750.2,3749.7,0.04237393]
[1717053102379,0.55,3750.2,3749.5,1.29789222]